bitfinex/quotes_SOLUSD_20241113
["timestamp","ask_amount","ask_price","bid_price","bid_amount"]
[1731523474360,0.4294717,218.26,218.24,22.17298475]
[1731523474560,0.4294717,218.26,218.22,16.0386]
[1731523474765,0.4294717,218.26,218.24,22.17298475]
[1731523476486,0.4294717,218.26,218.24,26.75498475]
[1731523476666,0.4294717,218.26,218.22,11.4561]
[1731523476866,0.4294717,218.26,218.25,22.17298475]
[1731523477171,0.4294717,218.26,218.22,11.4561]
[1731523477483,0.4294717,218.26,218.25,22.17298475]
[1731523477860,0.4294717,218.26,218.22,11.4561]
[1731523478288,4.5819,218.25,218.14,20.0]
[1731523478476,0.4294717,218.26,218.22,22.17298475]
[1731523478674,5.0111717,218.26,218.22,22.17298475]
[1731523479365,5.0111717,218.26,218.15,0.12549]
[1731523479563,27.18415645,218.26,218.19,22.17298475]
[1731523479768,5.0111717,218.26,218.21,22.17298475]
[1731523480788,27.18415645,218.26,218.19,22.17298475]
[1731523481091,5.0111717,218.26,218.21,22.17298475]
[1731523481580,0.4294717,218.26,218.21,22.17298475]
[1731523481816,0.4294717,218.26,218.23,22.17298475]
[1731523481980,0.4294717,218.26,218.17,23.776884]
[1731523482292,0.4294717,218.26,218.25,22.17298475]
[1731523483072,0.4294717,218.26,218.25,45.94986875]
[1731523483769,0.4294717,218.26,218.25,50.53176875]
[1731523484677,0.4294717,218.26,218.25,26.75488475]
[1731523484869,0.4294717,218.26,218.25,18.41325137]
[1731523486184,0.4294717,218.26,218.25,13.83135137]
[1731523486980,6.3637,218.38,218.26,16.0358]
[1731523487183,6.3637,218.38,218.34,13.83135137]
[1731523487367,6.3637,218.38,218.27,4.599]
[1731523487368,6.3637,218.38,218.32,13.83135137]
[1731523487568,6.3637,218.38,218.33,13.83135137]
[1731523488002,13.83135137,218.4,218.27,4.599]
[1731523488003,4.5789,218.4,218.37,13.83135137]
[1731523488369,4.5789,218.4,218.28,22.6608]
[1731523488370,4.5789,218.4,218.36,13.83135137]
[1731523488881,4.5789,218.4,218.36,22.1179876]
[1731523489265,0.12549,218.42,218.36,22.1179876]
[1731523489470,4.5783,218.42,218.36,22.1179876]
[1731523489875,26.6962876,218.42,218.35,22.1179876]
[1731523490484,26.6962876,218.42,218.34,22.1179876]
[1731523490783,22.1179876,218.41,218.34,22.1179876]
[1731523491095,46.0203616,218.41,218.34,22.1179876]
[1731523491476,0.12549,218.36,218.3,22.1179876]
[1731523491790,22.1179876,218.37,218.3,22.1179876]
[1731523492089,22.1179876,218.38,218.3,22.1179876]
[1731523492288,0.12549,218.36,218.3,22.1179876]
[1731523492468,23.902374,218.36,218.3,22.1179876]
[1731523492781,4.5798,218.35,218.3,22.1179876]
[1731523493382,38.1472876,218.35,218.28,22.1179876]
[1731523493594,16.0293,218.35,218.29,22.1179876]
[1731523493890,38.1472876,218.35,218.27,22.1179876]
[1731523494066,22.1179876,218.34,218.27,22.1179876]
[1731523494268,22.1179876,218.33,218.25,22.1179876]
[1731523494597,4.5804,218.32,218.26,22.1179876]
[1731523494800,4.5804,218.32,218.25,22.1179876]
[1731523495292,4.5804,218.32,218.27,22.1179876]
[1731523495791,38.2667876,218.36,218.29,22.1179876]
[1731523495971,4.5798,218.35,218.29,22.1179876]
[1731523496480,26.6977876,218.35,218.27,22.1179876]
[1731523496684,22.1179876,218.33,218.26,22.1179876]
[1731523496887,4.5804,218.32,218.25,22.1179876]
[1731523497067,4.5801,218.34,218.27,22.1179876]
[1731523497268,4.5801,218.34,218.28,22.1179876]
[1731523497686,4.5801,218.34,218.27,22.1179876]
[1731523499684,22.1179876,218.34,218.27,22.1179876]
[1731523499891,22.1179876,218.32,218.25,22.1179876]
[1731523500785,22.1179876,218.3,218.23,22.1179876]
[1731523501372,22.1179876,218.32,218.24,22.1179876]
[1731523501575,22.1179876,218.31,218.24,22.1179876]
[1731523502386,4.5808,218.3,218.24,22.1179876]
[1731523502890,26.6987876,218.3,218.22,22.1179876]
[1731523503096,22.1179876,218.28,218.21,22.1179876]
[1731523503283,4.5808,218.3,218.2,4.5827]
[1731523503284,22.1179876,218.27,218.2,26.7006876]
[1731523503597,4.5808,218.3,218.23,22.1179876]
[1731523503598,26.6987876,218.3,218.23,22.1179876]
[1731523503973,26.6987876,218.3,218.22,22.1179876]
[1731523504177,22.1179876,218.29,218.22,22.1179876]
[1731523504476,22.1179876,218.27,218.2,38.1581876]
[1731523504676,26.6991876,218.28,218.21,22.1179876]
[1731523504877,22.2434776,218.27,218.19,22.1179876]
[1731523505099,22.1179876,218.25,218.18,22.1179876]
[1731523505982,22.1179876,218.24,218.17,22.1179876]
[1731523506181,26.3225516,218.23,218.15,12.1179876]
[1731523506368,22.1179876,218.22,218.15,12.1179876]
[1731523506970,22.1179876,218.2,218.13,22.1179876]
[1731523507196,26.3225516,218.23,218.16,22.1179876]
[1731523507395,4.5816,218.27,218.22,22.1179876]
[1731523507599,21.0427,218.31,218.14,0.91635676]
[1731523507804,21.0427,218.31,218.13,22.4434776]
[1731523507988,21.0427,218.31,218.15,0.1]
[1731523508184,21.0427,218.31,218.16,16.0431]
[1731523508413,21.0427,218.31,218.18,4.599]
[1731523508580,43.1606876,218.31,218.23,22.1179876]
[1731523508916,22.1179876,218.29,218.23,22.1179876]
[1731523509412,22.1179876,218.28,218.2,22.1179876]
[1731523509608,22.1179876,218.27,218.2,22.1179876]
[1731523509807,22.1179876,218.28,218.2,22.1179876]
[1731523509983,22.1179876,218.29,218.21,22.1179876]
[1731523510304,26.6991876,218.28,218.19,4.5831]
[1731523510603,26.6991876,218.28,218.17,20.0]
[1731523510604,26.6991876,218.28,218.2,22.1179876]
[1731523510980,4.5812,218.28,218.22,13.84035414]
[1731523511281,4.5808,218.3,218.22,13.84035414]
[1731523511482,4.5808,218.3,218.25,13.84035414]
[1731523511683,4.5808,218.3,218.23,13.84035414]
[1731523511886,13.84035414,218.28,218.21,13.84035414]
[1731523512605,4.5814,218.27,218.21,18.42305414]
[1731523512781,4.5814,218.27,218.22,13.84035414]
[1731523513207,4.5812,218.29,218.24,13.84035414]
[1731523513509,17.8486,218.36,218.28,13.84035414]
[1731523513510,6.2994,218.36,218.28,13.84035414]
[1731523513686,10.879,218.36,218.3,13.84035414]
[1731523513883,13.84035414,218.34,218.25,13.84035414]
[1731523514084,13.84035414,218.32,218.23,13.84035414]
[1731523514408,0.12549,218.35,218.21,25.29715414]
[1731523514409,13.84035414,218.28,218.21,25.29715414]
[1731523514584,13.84035414,218.26,218.19,13.84035414]
[1731523514788,13.84035414,218.28,218.19,29.88135414]
[1731523514991,18.42165414,218.28,218.19,29.88135414]
[1731523515599,13.84035414,218.26,218.19,29.88135414]
[1731523516107,13.84035414,218.3,218.23,13.84035414]
[1731523516295,4.58,218.34,218.19,16.041]
[1731523516296,13.84035414,218.32,218.24,13.84035414]
[1731523517009,13.84035414,218.26,218.19,25.29825414]
[1731523517185,13.84035414,218.21,218.14,11.4602]
[1731523517381,13.84035414,218.21,218.14,29.88475414]
[1731523517895,13.84035414,218.25,218.18,13.84035414]
[1731523518102,0.2,218.32,218.16,13.84035414]
[1731523518103,13.84035414,218.24,218.16,13.84035414]
[1731523518301,13.84035414,218.22,218.14,25.30055414]
[1731523518513,0.12549,218.26,218.1,11.4624]
[1731523518514,13.84035414,218.2,218.1,11.4624]
[1731523518709,13.84035414,218.16,218.1,11.4624]
[1731523518886,13.84035414,218.14,218.08,4.5853]
[1731523519212,13.84035414,218.14,218.07,13.84035414]
[1731523519400,16.3016,218.15,217.98,3.7035825]
[1731523519614,16.3016,218.15,217.98,13.84035414]
[1731523519615,13.84035414,218.06,217.98,13.84035414]
[1731523519800,13.84035414,218.06,217.98,18.42775414]
[1731523520290,13.84035414,218.06,217.94,18.42855414]
[1731523520291,13.84035414,218.02,217.94,18.42855414]
[1731523520495,13.84035414,218.0,217.94,4.5882]
[1731523520705,13.84035414,218.02,217.95,13.84035414]
[1731523520911,20.0,218.09,217.94,4.5882]
[1731523520912,13.84035414,218.1,218.0,13.84035414]
[1731523521093,6.0045,218.13,217.97,0.1]
[1731523521297,16.3016,218.15,217.99,6.2531]
[1731523521490,20.8857,218.15,218.0,23.776884]
[1731523521919,20.8857,218.15,218.01,20.0]
[1731523522102,13.84035414,218.12,218.04,13.84035414]
[1731523522399,16.3016,218.15,218.01,16.0542]
[1731523522400,4.5841,218.15,218.1,13.84035414]
[1731523522602,13.84035414,218.18,218.1,13.84035414]
[1731523522802,26.2547,218.2,218.14,22.16359891]
[1731523523197,48.41829891,218.2,218.12,22.16359891]
[1731523523591,42.41379891,218.2,218.12,22.16359891]
[1731523523804,22.16359891,218.16,218.08,22.16359891]
[1731523524007,22.16359891,218.14,218.06,22.16359891]
[1731523524211,22.16359891,218.12,218.05,4.5859]
[1731523524611,22.16359891,218.12,218.04,22.16359891]
[1731523524821,22.16359891,218.12,218.04,26.74979891]
[1731523525206,22.16359891,218.12,218.04,22.16359891]
[1731523525428,22.16359891,218.12,218.05,22.16359891]
[1731523525599,22.16359891,218.14,218.05,22.16359891]
[1731523525800,4.5844,218.13,218.05,22.16359891]
[1731523527808,22.16359891,218.12,218.05,22.16359891]
[1731523528112,22.16359891,218.12,218.02,11.4666]
[1731523528113,22.16359891,218.12,218.03,22.16359891]
[1731523528301,22.16359891,218.12,218.03,26.74999891]
[1731523528496,22.16359891,218.11,218.03,22.16359891]
[1731523529123,22.16359891,218.09,218.02,33.63019891]
[1731523529428,22.16359891,218.12,218.05,22.16359891]
[1731523529603,0.12549,218.13,218.02,11.4666]
[1731523529604,22.16359891,218.11,218.04,22.16359891]
[1731523529914,22.16359891,218.1,218.03,22.16359891]
[1731523530216,23.902374,218.13,217.97,3.57211809]
[1731523530217,22.16359891,218.08,218.0,4.587]
[1731523530409,22.16359891,218.09,218.02,22.16359891]
[1731523531111,4.5854,218.08,218.01,22.16359891]
[1731523531419,22.16359891,218.04,217.97,11.469]
[1731523531618,22.16359891,218.03,217.97,11.469]
[1731523531822,22.16359891,218.02,217.94,22.16359891]
[1731523532008,22.16359891,218.01,217.93,22.16359891]
[1731523532213,22.16359891,218.02,217.95,22.16359891]
[1731523532405,22.16359891,218.03,217.95,22.16359891]
[1731523532809,22.16359891,218.06,217.99,22.16359891]
[1731523533006,22.28908891,218.07,218.0,22.16359891]
[1731523533424,23.776884,218.06,218.0,22.16359891]
[1731523533623,23.776884,218.06,217.92,11.4716]
[1731523533624,4.5858,218.06,218.01,22.16359891]
[1731523533923,16.4164,218.08,218.02,22.16359891]
[1731523534103,4.5853,218.09,218.04,22.16359891]
[1731523534304,0.79218252,218.12,218.07,22.16359891]
[1731523534515,4.5847,218.12,218.07,22.16359891]
[1731523534718,4.5847,218.12,218.03,22.16359891]
[1731523534919,0.12549,218.11,217.97,16.0571]
[1731523535728,0.1,218.07,217.92,16.0608]
[1731523535901,22.16359891,218.01,217.93,22.16359891]
[1731523536103,22.16359891,218.02,217.95,22.16359891]
[1731523537015,26.75049891,218.01,217.93,22.16359891]
[1731523537326,4.5869,218.01,217.94,22.16359891]
[1731523537726,26.75049891,218.01,217.93,38.22349891]
[1731523537923,26.75049891,218.01,217.94,22.16359891]
[1731523538125,4.5869,218.01,217.96,22.16359891]
[1731523538428,4.5869,218.01,217.95,22.16359891]
[1731523538722,4.5869,218.01,217.89,6.5695]
[1731523538723,22.16359891,217.96,217.89,22.16359891]
[1731523539514,22.16359891,217.97,217.9,22.16359891]
[1731523539718,0.12549,217.99,217.89,22.16359891]
[1731523539719,22.16359891,217.96,217.89,22.16359891]
[1731523540107,4.5879,217.97,217.91,22.16359891]
[1731523540308,22.16359891,218.02,217.94,22.16359891]
[1731523540521,23.776884,218.01,217.95,22.16359891]
[1731523540719,23.776884,218.01,217.94,22.16359891]
[1731523541122,23.776884,218.01,217.95,22.16359891]
[1731523541327,23.902374,218.02,217.95,22.16359891]
[1731523541625,46.06597291,218.02,217.94,22.16359891]
[1731523541923,23.902374,218.02,217.95,22.16359891]
[1731523542126,26.75049891,218.01,217.94,22.16359891]
[1731523542330,22.16359891,218.0,217.93,22.16359891]
[1731523543319,22.16359891,217.96,217.89,22.16359891]
[1731523543507,22.16359891,217.95,217.87,22.16359891]
[1731523544828,23.776884,217.97,217.9,22.16359891]
[1731523545006,22.16359891,217.98,217.9,22.16359891]
[1731523545315,4.5868,218.02,217.96,22.16359891]
[1731523545520,4.5868,218.02,217.98,22.16359891]
[1731523545733,4.5868,218.02,217.97,22.16359891]
[1731523545910,4.5868,218.02,217.96,22.16359891]
[1731523546111,4.5868,218.02,217.95,22.16359891]
[1731523546324,26.75039891,218.02,217.94,22.16359891]
[1731523546532,22.16359891,217.99,217.92,22.16359891]
[1731523546703,22.16359891,217.98,217.91,22.16359891]
[1731523546910,22.16359891,217.96,217.89,22.16359891]
[1731523547104,22.16359891,217.94,217.84,4.5905]
[1731523547305,22.16359891,217.9,217.83,22.16359891]
[1731523547512,22.16359891,217.9,217.82,22.16359891]
[1731523547706,22.16359891,217.9,217.83,22.16359891]
[1731523548542,23.776884,217.91,217.83,22.16359891]
[1731523548543,4.5894,217.89,217.83,22.16359891]
[1731523549016,22.16359891,217.95,217.88,22.16359891]
[1731523549218,4.5886,217.94,217.88,22.16359891]
[1731523550134,21.1218,217.96,217.91,22.16359891]
[1731523550314,21.1218,217.96,217.9,22.16359891]
[1731523550637,43.28539891,217.96,217.88,33.63779891]
[1731523550932,22.16359891,217.95,217.88,11.4742]
[1731523551128,43.28539891,217.96,217.89,22.16359891]
[1731523551333,45.94048291,217.95,217.88,33.63779891]
[1731523552122,4.5884,217.94,217.88,33.63779891]
[1731523553030,26.75199891,217.94,217.88,11.4742]
[1731523553223,26.75199891,217.94,217.86,26.75359891]
[1731523553624,4.5884,217.94,217.88,22.16359891]
[1731523553830,22.16359891,217.93,217.85,22.16359891]
[1731523554027,4.5884,217.94,217.87,22.16359891]
[1731523554530,0.12549,217.93,217.85,22.16359891]
[1731523554736,22.16359891,217.92,217.85,22.16359891]
[1731523554935,22.16359891,217.92,217.84,11.4761]
[1731523554936,23.902374,217.93,217.86,22.16359891]
[1731523555325,22.16359891,217.9,217.84,11.4761]
[1731523555515,23.776884,217.89,217.79,11.4784]
[1731523555721,22.16359891,217.86,217.79,11.4784]
[1731523555914,23.776884,217.89,217.8,22.16359891]
[1731523555915,22.16359891,217.87,217.8,22.16359891]
[1731523556331,22.16359891,217.87,217.79,38.23349891]
[1731523556550,22.16359891,217.85,217.77,26.75549891]
[1731523556722,16.5743,217.84,217.78,22.16359891]
[1731523557646,16.5743,217.84,217.78,26.75529891]
[1731523559135,21.1648,217.84,217.78,26.75529891]
[1731523559724,43.32839891,217.84,217.76,22.16359891]
[1731523560335,23.876884,217.89,217.76,22.16359891]
[1731523560336,38.54349891,217.89,217.82,22.16359891]
[1731523560545,20.9693,217.89,217.82,22.16359891]
[1731523560721,16.3799,217.89,217.82,22.16359891]
[1731523560928,4.5887,217.93,217.87,22.16359891]
[1731523561242,6.2985,217.98,217.81,23.876884]
[1731523561431,6.2985,217.98,217.95,22.16359891]
[1731523561630,20.9671,218.0,217.95,22.16359891]
[1731523561819,20.9671,218.0,217.93,26.75209891]
[1731523562024,0.12549,217.97,217.9,22.16359891]
[1731523562227,22.16359891,217.94,217.86,22.16359891]
[1731523562720,22.16359891,217.94,217.82,11.4768]
[1731523562721,22.16359891,217.98,217.91,22.16359891]
[1731523563339,20.9671,218.0,217.94,22.16359891]
[1731523563542,6.6418,218.03,217.98,22.16359891]
[1731523563751,11.2283,218.03,217.98,22.16359891]
[1731523564054,6.6418,218.03,217.99,22.16359891]
[1731523564243,11.2284,218.03,217.98,22.16359891]
[1731523565432,33.39199891,218.03,217.96,22.16359891]
[1731523566238,0.2,218.11,217.94,16.0592]
[1731523566239,6.2119,218.09,218.02,22.16359891]
[1731523566634,4.5852,218.09,218.04,22.16359891]
[1731523566951,22.16359891,218.06,217.98,22.16359891]
[1731523567122,22.16359891,218.04,217.96,22.16359891]
[1731523567446,4.5865,218.03,217.96,22.16359891]
[1731523568035,4.5865,218.03,217.95,4.588]
[1731523568341,4.5865,218.03,217.94,11.4708]
[1731523568342,4.5865,218.03,217.98,22.16359891]
[1731523568537,22.16359891,218.09,218.02,22.16359891]
[1731523568736,4.585,218.1,218.02,22.16359891]
[1731523568737,26.74859891,218.1,218.02,22.16359891]
[1731523568940,22.16359891,218.09,218.01,22.16359891]
[1731523569247,0.12549,218.1,218.03,22.16359891]
[1731523569449,0.12549,218.1,217.95,20.0]
[1731523569450,4.71049,218.1,218.04,22.16359891]
[1731523569622,4.585,218.1,218.03,22.16359891]
[1731523569942,4.585,218.1,217.99,11.4681]
[1731523569943,16.6529,218.17,218.09,22.16359891]
[1731523570146,21.2366,218.17,218.12,22.16359891]
[1731523570337,6.634,218.2,218.15,22.16359891]
[1731523570551,6.634,218.26,218.06,0.2]
[1731523570723,6.634,218.26,218.1,0.2]
[1731523570925,33.37939891,218.26,218.08,20.1]
[1731523571129,11.2158,218.26,218.13,22.16359891]
[1731523571328,6.634,218.26,218.22,22.16359891]
[1731523571643,4.5813,218.28,218.14,16.0447]
[1731523571644,4.5813,218.28,218.21,22.16359891]
[1731523572435,22.16359891,218.28,218.21,22.16359891]
[1731523572635,22.16359891,218.3,218.21,22.16359891]
[1731523573729,4.581,218.29,218.21,22.16359891]
[1731523573935,23.776884,218.28,218.21,22.16359891]
[1731523574842,4.581,218.29,218.23,22.16359891]
[1731523575043,4.581,218.29,218.25,22.16359891]
[1731523575262,4.581,218.29,218.18,11.4582]
[1731523575263,23.776884,218.28,218.21,22.16359891]
[1731523575852,23.776884,218.28,218.23,22.16359891]
[1731523576234,45.94048291,218.28,218.21,22.16359891]
[1731523576445,23.776884,218.28,218.21,22.16359891]
[1731523576847,4.5814,218.27,218.21,22.16359891]
[1731523578457,4.581,218.3,218.26,22.16359891]
[1731523579138,4.581,218.3,218.24,22.16359891]
[1731523580364,45.94048291,218.29,218.2,22.16359891]
[1731523580535,23.776884,218.24,218.16,22.16359891]
[1731523580935,22.16359891,218.23,218.14,22.16359891]
[1731523581132,23.776884,218.2,218.12,22.16359891]
[1731523581534,22.16359891,218.23,218.14,22.16359891]
[1731523581739,22.16359891,218.23,218.16,22.16359891]
[1731523581740,23.776884,218.22,218.16,22.16359891]
[1731523582040,45.94048291,218.22,218.12,22.16359891]
[1731523582452,45.94048291,218.22,218.14,22.16359891]
[1731523583255,23.776884,218.17,218.1,22.16359891]
[1731523584151,26.74729891,218.16,218.08,22.16359891]
[1731523584552,22.16359891,218.14,218.08,22.16359891]
[1731523584865,22.16359891,218.14,218.06,22.16359891]
[1731523585363,4.5837,218.16,218.04,4.5862]
[1731523585364,23.902374,218.15,218.04,22.16359891]
[1731523585541,22.16359891,218.11,218.04,22.16359891]
[1731523586243,45.94048291,218.09,218.02,22.16359891]
[1731523586554,4.585,218.1,218.04,22.16359891]
[1731523586944,28.361584,218.12,218.06,22.16359891]
[1731523587148,28.361584,218.12,218.08,22.16359891]
[1731523587464,23.776884,218.16,218.08,22.16359891]
[1731523587665,22.16359891,218.15,218.08,22.16359891]
[1731523587862,23.776884,218.14,218.08,22.16359891]
[1731523588451,4.5844,218.13,218.08,22.16359891]
[1731523588656,22.16359891,218.17,218.1,22.16359891]
[1731523588864,4.5831,218.2,218.15,22.16359891]
[1731523589049,4.5826,218.22,218.18,22.16359891]
[1731523589248,6.3256,218.24,218.13,22.16359891]
[1731523589249,10.9078,218.24,218.19,22.16359891]
[1731523589458,4.5822,218.24,218.19,22.16359891]
[1731523589865,4.5822,218.24,218.18,22.16359891]
[1731523590573,4.5822,218.24,218.17,22.16359891]
[1731523590742,22.16359891,218.21,218.09,0.12549]
[1731523590948,23.776884,218.23,218.18,22.16359891]
[1731523591147,26.9634,218.26,218.11,4.5846]
[1731523591148,20.091,218.26,218.2,22.16359891]
[1731523591348,20.091,218.26,218.12,6.0314]
[1731523591349,4.5812,218.28,218.23,22.16359891]
[1731523591564,4.5812,218.28,218.13,43.876884]
[1731523591849,4.5812,218.28,218.21,22.16359891]
[1731523592366,26.74479891,218.28,218.21,22.16359891]
[1731523592668,45.94048291,218.22,218.13,20.0]
[1731523592970,0.1,218.25,218.1,22.16359891]
[1731523593147,0.1,218.25,218.08,11.4636]
[1731523593354,0.22549,218.26,218.07,4.5856]
[1731523593355,45.94048291,218.14,218.07,22.16359891]
[1731523593555,45.94048291,218.14,218.03,16.0525]
[1731523593752,45.94048291,218.14,218.06,22.16359891]
[1731523594060,22.16359891,218.12,218.04,22.16359891]
[1731523594248,22.16359891,218.11,218.04,26.74979891]
[1731523594451,22.16359891,218.1,218.02,22.16359891]
[1731523594663,22.16359891,218.1,218.03,22.16359891]
[1731523594869,22.16359891,218.11,218.04,22.16359891]
[1731523595452,16.0447,218.14,217.99,16.0556]
[1731523595453,23.776884,218.12,218.06,22.16359891]
[1731523595656,45.94048291,218.12,218.04,22.16359891]
[1731523596564,4.5848,218.11,218.04,22.16359891]
[1731523596753,22.16359891,218.1,218.02,22.16359891]
[1731523596953,22.16359891,218.1,218.04,22.16359891]
[1731523597354,26.74839891,218.11,218.03,22.16359891]
[1731523597568,22.16359891,218.08,218.0,16.18029]
[1731523597877,45.94048291,218.1,218.02,22.16359891]
[1731523598078,4.5848,218.11,218.05,22.16359891]
[1731523598253,26.74839891,218.11,218.04,22.16359891]
[1731523598654,4.5848,218.11,218.05,22.16359891]
[1731523599073,26.74839891,218.11,218.04,22.16359891]
[1731523600177,26.74879891,218.1,218.03,26.74999891]
[1731523600361,4.5852,218.1,218.05,22.16359891]
[1731523600859,4.5852,218.1,218.04,22.16359891]
[1731523601172,26.74879891,218.1,218.01,0.12549]
[1731523601351,26.74879891,218.1,218.02,22.16359891]
[1731523601352,23.776884,218.09,218.02,22.16359891]
[1731523601552,23.776884,218.09,218.03,22.16359891]
[1731523601849,23.776884,218.09,218.04,22.16359891]
[1731523602048,23.776884,218.09,218.03,22.16359891]
[1731523602476,28.362284,218.09,218.03,22.16359891]
[1731523605478,22.16359891,218.07,217.98,24.5875]
[1731523605672,22.16359891,218.03,217.96,33.63329891]
[1731523605976,23.776884,218.06,217.96,16.0576]
[1731523606682,4.5855,218.08,217.98,16.0564]
[1731523606852,4.5852,218.1,218.05,22.16359891]
[1731523607172,4.5852,218.1,217.99,20.0]
[1731523607173,26.74879891,218.1,218.03,22.16359891]
[1731523607566,22.16359891,218.07,217.99,22.16359891]
[1731523607761,22.16359891,218.03,217.96,22.16359891]
[1731523607981,4.5852,218.1,217.91,22.16359891]
[1731523607982,22.16359891,217.99,217.91,22.16359891]
[1731523608368,22.16359891,217.98,217.9,26.75269891]
[1731523608685,22.16359891,217.92,217.85,33.63919891]
[1731523608879,22.16359891,217.91,217.85,11.4756]
[1731523609055,22.16359891,217.9,217.85,11.4756]
[1731523609257,4.5877,217.97,217.87,22.16359891]
[1731523609481,4.5877,217.97,217.86,0.12549]
[1731523609787,4.5875,217.99,217.94,22.16359891]
[1731523610381,26.75109891,217.99,217.92,22.16359891]
[1731523610562,4.5865,218.03,217.97,22.16359891]
[1731523610763,4.5865,218.03,217.95,4.5881]
[1731523610966,22.16359891,218.02,217.94,22.16359891]
[1731523611585,26.75009891,218.03,217.95,22.16359891]
[1731523611956,4.5869,218.01,217.95,22.16359891]
[1731523612368,23.776884,218.0,217.94,22.16359891]
[1731523613279,23.776884,218.0,217.88,11.474]
[1731523613280,45.94048291,218.0,217.93,22.16359891]
[1731523613487,22.16359891,217.96,217.89,22.16359891]
[1731523613667,22.16359891,217.95,217.88,38.22709891]
[1731523613989,22.16359891,217.92,217.84,22.16359891]
[1731523614287,22.16359891,217.91,217.83,33.63989891]
[1731523614583,22.16359891,217.91,217.83,38.23059891]
[1731523614794,22.16359891,217.9,217.83,16.067]
[1731523615393,22.16359891,217.89,217.83,16.067]
[1731523615683,22.16359891,217.89,217.77,4.5918]
[1731523615684,22.16359891,217.84,217.77,4.5918]
[1731523616267,22.16359891,217.82,217.75,16.0732]
[1731523616468,22.16359891,217.8,217.75,11.4809]
[1731523616677,22.16359891,217.78,217.73,4.5927]
[1731523616973,22.8976,217.85,217.73,4.5927]
[1731523616974,22.16359891,217.8,217.73,4.5927]
[1731523617680,26.75499891,217.8,217.72,22.59307061]
[1731523617989,22.16359891,217.78,217.72,5.0223717]
[1731523619671,22.16359891,217.76,217.72,0.4294717]
[1731523620384,4.5919,217.78,217.72,0.4294717]
[1731523620385,26.75549891,217.78,217.72,0.4294717]
[1731523620576,22.16359891,217.8,217.72,0.4294717]
[1731523620771,22.16359891,217.82,217.75,22.16359891]
[1731523620978,22.16359891,217.82,217.72,16.5050717]
[1731523620979,27.488,217.85,217.77,22.16359891]
[1731523621173,22.16359891,217.84,217.77,22.16359891]
[1731523621375,22.16359891,217.82,217.75,22.16359891]
[1731523621686,22.16359891,217.82,217.73,22.28908891]
[1731523621873,22.16359891,217.82,217.74,4.5926]
[1731523622280,26.75449891,217.82,217.75,22.16359891]
[1731523622487,22.16359891,217.84,217.75,22.16359891]
[1731523622672,22.16359891,217.8,217.74,11.4815]
[1731523623396,22.16359891,217.78,217.72,0.4294717]
[1731523623691,22.16359891,217.76,217.72,0.4294717]
[1731523624094,22.16359891,217.77,217.72,0.4294717]
[1731523624280,22.16359891,217.78,217.72,0.4294717]
[1731523624682,23.776884,217.81,217.72,0.4294717]
[1731523624683,45.94048291,217.81,217.73,22.16359891]
[1731523624876,45.94048291,217.81,217.72,11.9120717]
[1731523624877,22.16359891,217.77,217.72,11.9120717]
[1731523625086,22.16359891,217.77,217.72,16.5050717]
[1731523625289,22.16359891,217.78,217.72,16.5050717]
[1731523625472,22.16359891,217.78,217.72,38.66867061]
[1731523625672,22.16359891,217.78,217.72,16.5050717]
[1731523625980,22.16359891,217.78,217.72,0.4294717]
[1731523626183,4.592,217.77,217.72,0.4294717]
[1731523626894,22.16359891,217.76,217.72,0.4294717]
[1731523627199,23.776884,217.8,217.75,22.16359891]
[1731523627390,4.5902,217.86,217.78,22.16359891]
[1731523627605,4.5897,217.88,217.81,22.16359891]
[1731523628094,22.16359891,217.87,217.79,22.16359891]
[1731523628277,22.16359891,217.87,217.75,16.0734]
[1731523628594,22.16359891,217.87,217.79,22.16359891]
[1731523629091,22.16359891,217.89,217.81,22.16359891]
[1731523629398,4.5894,217.9,217.83,22.16359891]
[1731523629590,22.16359891,217.87,217.79,22.16359891]
[1731523629977,22.16359891,217.89,217.81,22.16359891]
[1731523630176,4.5894,217.9,217.83,22.16359891]
[1731523630900,26.75359891,217.87,217.79,33.64249891]
[1731523631098,4.59,217.87,217.81,22.16359891]
[1731523631929,22.16359891,217.89,217.81,22.16359891]
[1731523631930,26.75319891,217.89,217.81,22.16359891]
[1731523632208,26.75319891,217.89,217.83,22.16359891]
[1731523632209,4.5896,217.89,217.83,22.16359891]
[1731523632497,22.16359891,217.91,217.83,22.16359891]
[1731523632795,19.8326,217.96,217.89,22.16359891]
[1731523633000,4.5877,217.98,217.93,22.16359891]
[1731523633187,18.351433,218.03,217.95,22.16359891]
[1731523633188,22.16359891,218.03,217.95,22.16359891]